bitfinex-derivatives/quotes_ETHF0:USTF0_20241023
["timestamp","ask_amount","ask_price","bid_price","bid_amount"]
[1729671539848,0.3469,2596.1,2595.7,40.8]
[1729671540058,0.3469,2596.1,2595.7,0.34694]
[1729671540357,0.3469,2596.1,2595.6,0.34696]
[1729671540555,6.9078,2596.3,2595.6,40.8]
[1729671540857,0.34694,2595.8,2595.6,40.8]
[1729671541048,3.2078,2596.0,2595.6,40.8]
[1729671541049,0.34695,2595.7,2595.6,40.8]
[1729671541248,6.9078,2595.7,2594.8,3.2078]
[1729671541550,6.9078,2595.7,2594.7,5.0]
[1729671541551,0.34707,2594.8,2594.7,5.0]
[1729671541946,0.34711,2594.5,2594.1,0.34716]
[1729671542150,0.34711,2594.5,2593.3,10.456]
[1729671542151,0.34715,2594.2,2593.3,10.456]
[1729671542447,4.22050861,2594.1,2593.2,3.7]
[1729671542649,4.22050861,2594.1,2593.3,3.2078]
[1729671543055,4.22050861,2594.1,2593.7,0.34721]
[1729671543363,4.22050861,2594.1,2593.3,3.2078]
[1729671543364,0.34718,2594.0,2593.5,0.34724]
[1729671543653,4.22050861,2594.1,2593.2,3.7]
[1729671543654,4.22050861,2594.1,2593.6,0.34722]
[1729671543851,0.34719,2593.9,2593.4,0.34725]
[1729671544356,4.22050861,2594.1,2593.9,0.34718]
[1729671544558,4.22050861,2594.1,2593.8,0.3472]
[1729671544753,0.34714,2594.3,2593.6,3.2078]
[1729671545061,0.34713,2594.4,2593.9,0.34718]
[1729671545453,4.22795873,2594.3,2594.0,0.34717]
[1729671545760,3.2078,2594.6,2593.6,3.2078]
[1729671545954,3.2078,2594.6,2594.0,0.34717]
[1729671546160,4.22795873,2594.5,2594.2,0.34715]
[1729671546465,3.2078,2594.6,2593.7,3.6675]
[1729671546757,0.34714,2594.3,2593.8,0.34719]
[1729671547559,0.34714,2594.3,2593.9,0.34719]
[1729671547755,4.17657664,2594.5,2593.7,3.6675]
[1729671547962,4.17657664,2594.5,2594.0,40.8]
[1729671548162,3.2078,2594.6,2594.4,0.34711]
[1729671548363,3.2078,2594.6,2594.0,44.0078]
[1729671548558,4.16374736,2594.5,2594.2,0.34714]
[1729671548758,3.2078,2594.6,2594.4,0.34712]
[1729671549056,3.2078,2594.6,2594.0,44.0078]
[1729671549460,3.5549,2594.6,2594.1,0.34715]
[1729671549661,3.5549,2594.6,2594.0,40.8]
[1729671549662,3.2078,2594.6,2594.2,0.34714]
[1729671550155,3.2078,2594.6,2594.0,40.8]
[1729671550156,0.34713,2594.4,2594.0,40.8]
[1729671550356,4.49537468,2594.5,2594.1,0.34716]
[1729671550569,4.14826468,2594.5,2594.3,0.34712]
[1729671550773,3.2078,2594.6,2594.4,0.34712]
[1729671551263,3.5549,2594.6,2594.1,0.34715]
[1729671551470,3.2078,2594.6,2594.0,40.8]
[1729671551763,3.2078,2594.6,2594.5,0.34711]
[1729671551958,4.17,2595.5,2594.5,3.2078]
[1729671552159,4.51698,2595.5,2594.8,3.2078]
[1729671552364,4.25632626,2595.4,2594.8,3.2078]
[1729671552558,1.8039,2595.6,2595.1,3.55482]
[1729671552559,2.15087,2595.6,2595.1,3.55482]
[1729671552759,0.34698,2595.5,2595.1,3.55482]
[1729671552959,4.60330626,2595.5,2595.1,3.55482]
[1729671553567,4.25632626,2595.5,2595.1,3.2078]
[1729671553765,4.51694,2595.8,2595.4,0.34699]
[1729671554062,4.31570792,2595.7,2595.3,0.347]
[1729671554260,0.34698,2595.5,2595.1,3.55482]
[1729671554660,0.34696,2595.7,2595.3,0.347]
[1729671554861,0.34696,2595.6,2595.3,0.347]
[1729671555167,0.34697,2595.6,2595.2,0.34701]
[1729671555367,0.34697,2595.6,2595.2,41.14701]
[1729671555567,4.22493188,2595.7,2595.2,40.8]
[1729671555765,4.22493188,2595.7,2595.5,0.34697]
[1729671555966,0.34694,2595.8,2595.5,0.34697]
[1729671556170,0.34694,2595.8,2595.4,3.55478]
[1729671556359,0.34689,2596.1,2595.3,0.34699]
[1729671556565,0.34696,2595.6,2595.3,0.34699]
[1729671556765,4.13565327,2596.1,2595.3,0.34699]
[1729671556965,4.13565327,2596.1,2595.4,3.2078]
[1729671557364,7.8355,2596.2,2595.6,0.34696]
[1729671557365,0.34693,2595.9,2595.6,0.34696]
[1729671557566,0.34691,2596.0,2595.4,3.2078]
[1729671557865,8.18239,2596.2,2595.8,0.34692]
[1729671558068,7.8355,2596.2,2595.7,3.2078]
[1729671558271,3.6655,2596.2,2596.0,0.3469]
[1729671558464,3.6655,2596.2,2595.8,3.2078]
[1729671558465,0.34689,2596.2,2595.9,0.34691]
[1729671559369,0.3469,2596.1,2595.8,3.55473]
[1729671559568,0.34689,2596.2,2595.9,0.34692]
[1729671559878,0.34691,2596.0,2595.7,0.34694]
[1729671560572,4.24999865,2596.4,2595.8,0.34692]
[1729671560778,0.3469,2596.1,2595.5,3.2078]
[1729671560978,0.3469,2596.1,2595.7,0.34694]
[1729671561174,0.34692,2596.0,2595.6,0.34695]
[1729671561470,0.34692,2596.0,2595.2,41.66752]
[1729671561471,0.34694,2595.8,2595.4,0.34698]
[1729671561673,0.86718,2596.3,2595.4,0.34698]
[1729671561869,4.17,2595.8,2595.1,3.55482]
[1729671562071,1.21433,2595.7,2595.1,3.2078]
[1729671562270,0.34701,2595.3,2595.1,3.2078]
[1729671562478,11.29204362,2595.7,2595.1,3.2078]
[1729671562675,0.34701,2595.3,2595.1,3.2078]
[1729671562879,0.34701,2595.2,2595.1,3.2078]
[1729671563071,4.17,2595.5,2595.1,3.2078]
[1729671563268,4.51698,2595.5,2595.2,0.34701]
[1729671563475,6.8414,2595.7,2595.1,3.2078]
[1729671563674,7.18835,2595.7,2595.4,0.34698]
[1729671563877,1.7274,2595.7,2595.6,0.34696]
[1729671564374,3.7,2596.0,2595.1,4.07538]
[1729671564575,3.7,2596.3,2595.8,0.34693]
[1729671564779,4.05331643,2596.1,2595.9,0.34691]
[1729671564969,0.34691,2596.1,2595.8,0.34693]
[1729671565174,0.34691,2596.1,2595.4,3.2078]
[1729671565175,0.34689,2596.2,2595.7,3.2078]
[1729671565377,0.3469,2596.1,2595.8,0.34693]
[1729671565677,3.7,2596.3,2595.8,0.34693]
[1729671565678,0.34691,2596.0,2595.8,0.34693]
[1729671565884,4.06070424,2596.2,2595.5,0.34697]
[1729671566179,0.34692,2596.0,2595.8,0.34693]
[1729671566388,0.34692,2596.0,2595.7,0.34694]
[1729671566675,0.34691,2596.0,2595.7,0.34694]
[1729671566875,0.34691,2596.0,2595.8,0.34693]
[1729671567473,0.34691,2596.0,2595.4,5.0423]
[1729671567474,0.34691,2596.0,2595.7,0.34694]
[1729671567677,0.34692,2596.0,2595.7,0.34694]
[1729671568597,0.34695,2595.7,2595.5,0.34697]
[1729671568784,0.34694,2595.8,2595.5,0.34697]
[1729671569083,0.34693,2595.8,2595.6,0.34695]
[1729671569286,0.34693,2595.9,2595.6,0.34695]
[1729671569485,3.7,2596.0,2595.4,3.2078]
[1729671569703,1.781,2596.4,2595.0,3.2078]
[1729671569704,3.7,2595.5,2595.0,3.2078]
[1729671569987,0.34702,2595.2,2595.0,3.2078]
[1729671570988,4.20063,2595.1,2595.0,3.2078]
[1729671571187,4.20063,2595.1,2593.8,4.70464249]
[1729671571188,0.34709,2594.7,2594.4,0.34712]
[1729671571389,0.34708,2594.8,2594.5,0.34711]
[1729671571891,4.04707,2594.9,2594.5,0.34711]
[1729671572093,0.34707,2594.8,2594.5,0.34711]
[1729671572290,0.34703,2595.1,2594.8,0.34706]
[1729671572791,0.34703,2595.1,2594.3,0.86784]
[1729671572792,3.7,2595.4,2595.1,0.34702]
[1729671572988,4.04699,2595.4,2595.1,0.34702]
[1729671573183,0.34699,2595.4,2595.1,0.34702]
[1729671573396,0.34702,2595.2,2595.0,3.2078]
[1729671573588,0.347,2595.4,2595.1,0.34702]
[1729671573787,3.7,2595.5,2595.1,0.34702]
[1729671573788,4.04699,2595.5,2595.1,0.34702]
[1729671574292,0.34698,2595.5,2595.1,0.34702]
[1729671574487,0.34699,2595.4,2595.1,0.34702]
[1729671574693,1.7857,2595.7,2595.0,3.2078]
[1729671574890,0.34699,2595.4,2595.1,0.34702]
[1729671575288,0.34701,2595.3,2595.0,3.55483]
[1729671575784,0.34702,2595.2,2595.0,3.2078]
[1729671575986,0.34701,2595.3,2595.0,3.55484]
[1729671576183,0.34702,2595.2,2595.0,3.2078]
[1729671576387,3.7,2595.5,2595.0,3.2078]
[1729671576985,0.34702,2595.2,2595.0,3.2078]
[1729671577792,3.7,2595.5,2595.0,3.2078]
[1729671578299,0.34699,2595.4,2595.1,0.34702]
[1729671578592,4.73250501,2595.5,2595.1,0.34702]
[1729671578899,0.34699,2595.5,2595.1,0.34703]
[1729671579096,0.34699,2595.5,2595.2,0.34701]
[1729671579489,1.9278,2595.6,2595.2,0.34701]
[1729671579792,0.34699,2595.4,2595.1,0.34702]
[1729671579995,0.34698,2595.5,2595.2,0.34701]
[1729671580587,0.34699,2595.4,2595.1,0.34702]
[1729671581501,1.9278,2595.6,2595.0,3.2078]
[1729671581794,1.9278,2595.6,2595.2,0.34701]
[1729671581795,0.34698,2595.5,2595.2,0.34701]
[1729671582200,5.4857,2595.7,2595.0,3.2078]
[1729671582402,3.7,2595.7,2595.3,3.55479]
[1729671582595,0.34696,2595.6,2595.3,3.55479]
[1729671583802,3.7,2595.7,2595.3,3.55479]
[1729671584001,0.34698,2595.5,2595.3,0.34699]
[1729671584191,0.34697,2595.6,2595.4,0.34698]
[1729671584700,0.34699,2595.4,2595.2,0.34701]
[1729671585594,0.34697,2595.6,2595.3,0.34699]
[1729671585794,0.34697,2595.6,2595.0,3.2078]
[1729671586207,0.34697,2595.5,2595.3,0.347]
[1729671587104,3.2078,2595.9,2595.3,7.0606]
[1729671587296,5.65627954,2596.1,2595.6,3.2078]
[1729671587297,0.34692,2596.0,2595.6,3.2078]
[1729671587498,0.34692,2596.0,2595.8,0.34693]
[1729671587697,0.34693,2595.9,2595.7,0.34694]
[1729671588302,4.8011672,2596.0,2595.8,0.34693]
[1729671588605,0.34692,2596.0,2595.8,0.34693]
[1729671589206,0.34692,2596.0,2595.5,1.938]
[1729671589207,3.7,2596.5,2595.9,7.0598]
[1729671589403,3.7,2596.3,2595.9,3.2078]
[1729671589605,0.34689,2596.2,2596.0,0.3469]
[1729671589802,0.34692,2596.0,2595.7,3.55474]
[1729671590696,3.7,2596.3,2595.8,0.34693]
[1729671590897,0.34688,2596.3,2595.7,3.2078]
[1729671591108,0.34688,2596.2,2596.0,0.3469]
[1729671591811,0.34688,2596.3,2596.0,0.3469]
[1729671592204,0.34687,2596.3,2596.1,0.34689]
[1729671592410,0.34687,2596.3,2596.0,0.3469]
[1729671593301,3.7829,2596.4,2596.0,0.3469]
[1729671593501,0.34687,2596.3,2596.0,0.3469]
[1729671594098,3.7829,2596.4,2596.2,0.34687]
[1729671594099,1.8665,2596.4,2596.2,0.34687]
[1729671594305,5.16407954,2596.7,2596.1,3.2078]
[1729671594509,0.34686,2596.4,2596.1,0.34689]
[1729671594812,0.34686,2596.4,2596.0,3.2078]
[1729671594813,0.34686,2596.4,2596.2,0.34688]
[1729671595011,0.34686,2596.4,2596.1,0.34689]
[1729671595306,0.34686,2596.4,2596.0,3.2078]
[1729671595307,0.34689,2596.1,2596.0,3.2078]
[1729671595505,0.34689,2596.2,2596.0,3.2078]
[1729671595808,0.86714,2596.4,2595.7,3.2078]
[1729671596007,0.86714,2596.4,2595.4,1.9393]
[1729671596008,3.7,2595.9,2595.4,1.9393]
[1729671596208,0.34697,2595.5,2595.4,1.9393]
[1729671597008,0.347,2595.4,2595.1,2.26032]
[1729671597211,0.347,2595.4,2595.2,0.34701]
[1729671597404,0.347,2595.4,2595.1,2.26032]
[1729671597709,0.347,2595.4,2595.1,1.9133]
[1729671597911,0.347,2595.4,2595.2,0.34701]
[1729671598814,0.34698,2595.5,2595.2,0.34701]
[1729671599005,0.347,2595.4,2595.1,2.26032]
[1729671599208,1.95627954,2595.7,2595.1,1.9133]
[1729671599408,0.347,2595.4,2595.1,2.26033]
[1729671599709,0.34699,2595.4,2595.2,0.34701]
[1729671600108,1.95627954,2595.6,2595.3,3.2078]
[1729671600309,1.95627954,2595.7,2595.3,3.2078]
[1729671600508,2.30322954,2595.7,2595.3,3.2078]
[1729671600705,2.30321954,2595.8,2595.5,0.34697]
[1729671600901,1.95627954,2595.9,2595.4,0.86748]
[1729671601100,2.30317954,2596.1,2595.8,0.34693]
[1729671601305,0.3469,2596.1,2595.8,0.34693]
[1729671601710,0.34699,2595.4,2595.3,3.2078]
[1729671602807,0.34699,2595.4,2594.9,1.9079]
[1729671602808,17.06485916,2595.4,2594.7,3.2078]
[1729671603009,0.34705,2595.0,2594.7,3.55487]
[1729671603213,3.81392664,2595.3,2594.7,3.2078]
[1729671603408,4.16093664,2595.3,2594.7,3.2078]
[1729671603711,1.98562664,2595.5,2595.1,3.2078]
[1729671603912,1.98562664,2595.5,2594.8,3.2078]
[1729671604111,1.98562664,2595.3,2594.8,3.55486]
[1729671604411,0.34704,2595.0,2594.8,3.2078]
[1729671604617,1.98562664,2595.3,2594.8,3.2078]
[1729671604808,3.33318533,2595.5,2594.8,3.55486]
[1729671604809,0.34704,2595.1,2594.8,3.55486]
[1729671605711,1.98562664,2595.4,2594.8,3.2078]
[1729671606017,0.34701,2595.3,2595.0,0.34703]
[1729671606205,1.98562664,2595.5,2594.8,3.2078]
[1729671606519,0.34699,2595.4,2595.0,0.34704]
[1729671606714,1.98562664,2595.5,2595.0,0.34703]
[1729671606915,1.98562664,2595.5,2594.8,3.2078]
[1729671607215,1.98562664,2595.5,2595.1,3.2078]
[1729671607216,0.34699,2595.4,2595.1,3.2078]
[1729671607410,1.98562664,2595.6,2595.1,0.34702]
[1729671607610,0.347,2595.4,2595.1,0.34702]
[1729671608209,0.347,2595.4,2595.1,3.55482]
[1729671608405,1.98562664,2595.6,2595.1,3.2078]
[1729671608611,4.23378664,2595.7,2595.4,0.34698]
[1729671608809,4.23378664,2595.7,2595.1,3.2078]
[1729671608810,0.34698,2595.5,2595.3,0.34699]
[1729671609010,1.98562664,2595.6,2595.2,1.8111]
[1729671609210,0.347,2595.3,2595.2,1.8111]
[1729671609720,1.98562664,2595.6,2595.0,1.8007]
[1729671609721,0.34703,2595.1,2595.0,1.8007]
[1729671610117,3.7,2595.4,2594.8,3.2078]
[1729671610320,3.7,2595.4,2594.4,1.8007]
[1729671610321,2.85323664,2595.0,2594.4,1.8007]
[1729671610523,0.34711,2594.5,2594.1,3.55495]
[1729671610722,0.3471,2594.6,2594.3,0.34713]
[1729671611019,5.59252664,2594.9,2594.3,40.8]
[1729671611214,5.59252664,2594.9,2594.3,44.35493]
[1729671611215,0.3471,2594.6,2594.3,44.35493]
[1729671611518,0.34711,2594.5,2594.2,0.34714]
[1729671611919,5.59252664,2594.9,2594.0,5.1419]
[1729671612220,1.98562664,2595.1,2594.4,3.2078]
[1729671612416,2.46572533,2595.2,2594.4,3.2078]
[1729671612417,1.98562664,2595.2,2594.4,3.2078]
[1729671612614,1.98562664,2595.2,2594.4,3.55492]
[1729671612615,0.34709,2594.7,2594.4,3.55492]
[1729671613014,0.34707,2594.8,2594.5,0.3471]
[1729671613217,5.67352533,2595.2,2594.9,0.34705]
[1729671613218,2.33264664,2595.2,2594.9,0.34705]
[1729671613515,6.06032533,2595.4,2595.0,3.7441]
[1729671613516,1.8283,2595.4,2595.0,3.7441]
[1729671614031,1.98562664,2595.6,2595.2,3.2078]
[1729671614321,1.98562664,2595.6,2595.1,3.7]
[1729671614322,1.98562664,2596.2,2595.5,3.2078]
[1729671614522,3.7,2596.1,2595.5,3.2078]
[1729671614716,0.34694,2595.8,2595.5,3.55477]
[1729671615027,4.13177283,2596.1,2595.6,40.8]
[1729671615320,0.34693,2595.9,2595.6,42.6897]
[1729671615628,0.34692,2596.0,2595.7,0.34694]
[1729671615819,0.34693,2595.9,2595.6,43.03666]
[1729671616124,0.3469,2596.1,2595.8,0.34693]
[1729671616318,1.98562664,2596.2,2596.0,0.3469]
[1729671616521,1.98562664,2596.3,2595.9,3.2078]
[1729671616812,1.98562664,2596.3,2595.7,3.6897]
[1729671616813,0.34691,2596.0,2595.7,4.03664]
[1729671617124,0.34691,2596.0,2595.7,3.6897]
[1729671617317,0.34693,2595.8,2595.7,1.8837]
[1729671617517,3.7,2596.2,2595.6,42.6897]
[1729671617518,0.34693,2595.9,2595.6,42.6897]
[1729671617828,8.05856172,2596.2,2595.6,42.6897]
[1729671618127,1.796,2596.1,2595.6,42.6897]
[1729671618317,0.34693,2595.9,2595.6,42.6897]
[1729671618723,0.34693,2595.9,2595.5,0.34697]
[1729671618724,3.7,2595.7,2595.4,3.2078]
[1729671618917,0.34697,2595.5,2595.4,3.2078]
[1729671619832,4.19977,2595.5,2595.4,3.2078]
[1729671621526,3.7,2595.9,2595.4,3.2078]
[1729671621822,0.34697,2595.5,2595.4,3.2078]
[1729671622121,4.31427388,2595.9,2595.4,3.2078]
[1729671622323,4.31427388,2595.9,2595.8,0.34693]
[1729671622628,0.3469,2596.1,2595.8,0.34692]
[1729671622819,2.33250664,2596.3,2596.0,0.3469]
[1729671623022,0.34689,2596.2,2595.9,0.34692]
[1729671623418,4.67648806,2596.3,2596.0,0.3469]
[1729671623624,3.2078,2596.4,2595.8,3.2078]
[1729671623819,0.34686,2596.4,2596.1,0.34689]
[1729671624125,1.98562664,2596.5,2595.9,0.34691]
[1729671624435,0.34689,2596.2,2595.9,0.34691]
[1729671624627,1.98562664,2596.5,2595.8,3.2078]
[1729671624823,5.68562664,2596.4,2595.5,8.8165]
[1729671625018,10.06833997,2596.4,2595.5,8.8165]
[1729671625220,0.34691,2596.1,2595.7,0.34694]
[1729671625731,0.34691,2596.0,2595.7,0.34694]
[1729671625922,0.3469,2596.1,2595.8,0.34693]
[1729671626324,4.46645129,2596.3,2595.6,40.8]
[1729671626522,0.3469,2596.1,2595.8,0.34692]
[1729671626726,0.34689,2596.2,2595.9,0.34692]
[1729671626922,4.46645129,2596.3,2595.6,40.8]
[1729671627128,3.2078,2596.5,2596.2,0.34687]
[1729671627129,5.54027664,2596.5,2596.2,0.34687]
[1729671627330,1.98562664,2596.6,2596.2,3.2078]
[1729671627630,4.03548726,2596.4,2595.9,3.2078]
[1729671627830,4.03548726,2596.4,2596.0,0.34691]
[1729671628030,0.34686,2596.4,2596.0,0.3469]
[1729671628229,0.34686,2596.4,2596.1,2.25019]
[1729671628430,1.98562664,2596.7,2596.1,1.9033]
[1729671628924,1.98562664,2596.7,2596.2,0.34688]
[1729671628925,0.34685,2596.5,2596.2,0.34688]
[1729671629431,0.34683,2596.6,2596.3,0.34687]
[1729671629626,1.98562664,2596.7,2596.1,1.9033]
[1729671629823,0.34686,2596.4,2596.1,2.25019]
[1729671630133,0.34685,2596.4,2596.2,0.34688]
[1729671630328,0.34685,2596.5,2596.2,0.34688]
[1729671630527,0.34688,2596.2,2596.1,1.9033]
[1729671631035,0.34686,2596.4,2596.1,2.25019]
[1729671631641,1.98562664,2596.7,2596.1,1.9033]
[1729671631925,1.98562664,2597.0,2596.6,3.2078]
[1729671632132,0.34679,2596.9,2596.6,3.55462]
[1729671632329,0.34679,2596.9,2596.6,3.2078]
[1729671632538,0.34679,2596.9,2596.7,0.34681]
[1729671633025,2.46572533,2597.3,2596.6,6.9078]
[1729671633026,1.98562664,2597.3,2596.6,6.9078]
[1729671633231,1.8813,2597.4,2596.8,0.3468]
[1729671633232,0.34677,2597.1,2596.8,0.3468]
[1729671633430,0.34677,2597.0,2596.7,1.8296]
[1729671633626,0.34677,2597.0,2596.7,2.1764]
[1729671634019,0.34675,2597.2,2596.7,1.8296]
[1729671634220,0.86684,2597.3,2596.7,2.17641]
[1729671634221,0.34679,2596.9,2596.7,2.17641]
[1729671634424,5.17344372,2597.3,2596.7,1.8296]
[1729671634631,0.3468,2596.8,2596.7,1.8296]
[1729671635134,0.3468,2596.9,2596.7,1.8296]
[1729671636627,1.8661,2597.2,2596.7,1.8296]
[1729671636831,0.34686,2596.4,2596.2,3.7437]
[1729671637034,0.34685,2596.5,2596.2,4.09058]
[1729671637735,0.867,2596.9,2596.2,3.7437]
[1729671637934,0.86701,2596.8,2596.2,1.9157]
[1729671638232,0.34687,2596.3,2596.2,1.9157]
[1729671638821,1.8218,2596.7,2595.9,5.47131]
[1729671639030,0.34689,2596.2,2595.9,2.26351]
[1729671639233,0.3469,2596.1,2595.9,1.9166]
[1729671640231,0.34689,2596.2,2595.9,2.26352]
[1729671640427,0.34689,2596.2,2595.9,5.47132]
[1729671640629,0.3469,2596.1,2595.9,5.1244]
[1729671640930,0.34691,2596.0,2595.9,1.9166]
[1729671641122,5.24626569,2596.5,2595.7,42.6451]
[1729671641326,5.24626569,2596.5,2595.4,3.2078]
[1729671641327,3.7,2596.1,2595.4,3.2078]
[1729671641637,0.34697,2595.5,2595.4,3.2078]
[1729671642235,0.34697,2595.5,2594.8,4.04706]
[1729671642236,0.34706,2594.9,2594.7,3.2078]
[1729671642538,0.34704,2595.0,2594.7,0.34707]
[1729671642726,1.9087,2595.4,2594.5,5.0607]
[1729671642922,3.7,2595.5,2594.5,5.0607]
[1729671642923,0.34706,2594.9,2594.6,0.34709]
[1729671643136,4.24076121,2595.3,2594.8,3.55486]
[1729671643435,0.34702,2595.2,2594.9,0.34705]
[1729671643840,4.14137745,2595.6,2595.1,3.2078]
[1729671644142,0.34701,2595.3,2595.0,1.872]
[1729671644332,7.84137745,2595.7,2595.1,0.34702]
[1729671644532,0.34699,2595.4,2595.1,3.55482]
[1729671645030,4.03560112,2595.6,2595.1,3.2078]
[1729671645226,0.34701,2595.3,2595.1,3.2078]
[1729671645638,4.03560112,2595.6,2595.1,3.2078]
[1729671645833,0.34698,2595.5,2595.1,3.55482]
[1729671646040,0.34698,2595.5,2595.1,3.2078]
[1729671646233,4.4714853,2595.7,2595.1,3.2078]
[1729671646439,0.34701,2595.3,2595.1,3.2078]
[1729671646635,8.1714853,2595.7,2594.6,3.2078]
[1729671646836,6.9078,2595.5,2594.6,4.9913]
[1729671647143,0.34704,2595.0,2594.7,0.34708]
[1729671648039,0.34704,2595.0,2594.6,4.9913]
[1729671648244,0.34708,2594.7,2594.6,1.7835]
[1729671648538,0.34708,2594.7,2594.4,1.9127]
[1729671648539,0.34707,2594.8,2594.4,1.9127]
[1729671648739,7.74041727,2594.9,2594.4,1.9127]
[1729671648740,3.7,2594.9,2594.4,1.9127]
[1729671648929,0.34709,2594.7,2594.4,1.9127]
[1729671649132,0.34709,2594.7,2594.4,2.25982]
[1729671649340,0.34711,2594.5,2594.4,1.9127]
[1729671649643,0.34712,2594.5,2594.1,1.7823]
[1729671649944,0.3471,2594.6,2594.2,3.55494]
[1729671650142,4.40191512,2594.8,2594.2,3.55494]
[1729671650334,0.3471,2594.6,2594.2,3.55494]
[1729671650641,4.40191512,2594.8,2594.2,3.55494]
[1729671650835,4.40191512,2594.8,2594.1,1.7823]
[1729671650836,0.34713,2594.4,2594.1,1.7823]
[1729671651044,0.34713,2594.4,2594.1,42.92946]
[1729671651338,1.8992,2594.7,2594.1,42.92946]
[1729671651534,0.34712,2594.4,2594.1,46.13726]
[1729671651735,0.34712,2594.5,2594.1,46.13726]
[1729671651933,4.44992313,2594.6,2594.2,0.34714]
[1729671652129,4.10282313,2594.6,2594.2,0.34714]
[1729671652335,0.34711,2594.5,2594.2,0.34714]
[1729671652544,4.10282313,2594.6,2594.1,42.5823]
[1729671652936,4.10282313,2594.6,2594.1,40.8]
[1729671653338,7.31062313,2594.6,2594.0,1.8514]
[1729671653534,0.34715,2594.3,2594.0,1.8514]
[1729671653939,0.34713,2594.4,2594.0,45.8592]
[1729671654138,0.34712,2594.5,2594.1,0.34715]
[1729671654335,4.10282313,2594.6,2594.0,42.6514]
[1729671654542,0.34715,2594.3,2594.0,42.6514]
[1729671654850,4.10282313,2594.6,2594.0,40.8]
[1729671655148,4.27240937,2594.2,2594.0,0.34717]
[1729671655342,0.34713,2594.4,2594.0,0.34718]
[1729671655641,0.34713,2594.4,2594.1,0.34716]
[1729671656240,0.34711,2594.5,2594.2,0.34714]
[1729671656444,0.34711,2594.5,2594.3,3.2078]
[1729671656642,1.8992,2594.7,2594.0,44.0078]
[1729671656842,0.3471,2594.6,2594.3,0.34713]
[1729671657349,0.34711,2594.5,2594.2,0.34714]
[1729671657555,1.8992,2594.7,2594.0,44.0078]
[1729671658146,0.34712,2594.5,2594.1,0.34716]
[1729671658449,0.34713,2594.4,2594.1,0.34716]
[1729671658837,4.30447955,2594.6,2594.2,0.34715]
[1729671659043,4.30447955,2594.6,2594.1,0.34715]
[1729671659044,0.34712,2594.4,2594.1,0.34715]
[1729671659949,4.30447955,2594.6,2594.0,44.0078]
[1729671660354,0.34713,2594.4,2594.1,0.34715]
[1729671660649,4.30447955,2594.6,2594.0,44.0078]
[1729671660853,0.34716,2594.2,2594.0,44.0078]
[1729671661049,0.34716,2594.1,2594.0,44.0078]
[1729671661247,0.34716,2594.2,2594.0,44.0078]
[1729671661548,0.34715,2594.3,2594.0,41.14717]
[1729671661947,7.50372142,2594.6,2594.0,40.8]
[1729671662355,0.34711,2594.5,2594.2,0.34714]
[1729671662555,1.8992,2594.7,2594.3,2.11823]
[1729671662556,0.3471,2594.6,2594.3,2.11823]
[1729671662761,3.2078,2594.9,2594.3,3.6027]
[1729671662961,3.01,2595.0,2594.4,1.8582]
[1729671663257,4.8127,2595.0,2594.5,3.2078]
[1729671663557,3.2078,2595.4,2594.8,3.2078]
[1729671663864,0.34703,2595.2,2594.9,2.13565]
[1729671664054,3.2078,2595.4,2594.9,2.13565]
[1729671664255,3.55479,2595.4,2595.1,0.34702]
[1729671664455,0.34697,2595.6,2595.3,0.347]
[1729671664656,0.34698,2595.5,2595.2,0.34701]
[1729671664858,0.34698,2595.5,2595.3,40.8]
[1729671665357,0.34695,2595.7,2595.5,0.34697]
[1729671665552,0.34697,2595.6,2595.1,6.2178]
[1729671665857,0.34697,2595.6,2595.3,0.34699]
[1729671666059,0.34695,2595.7,2595.2,40.8]
[1729671666263,0.34697,2595.6,2595.4,0.34699]
[1729671666454,5.0105,2595.8,2595.4,0.34699]
[1729671666655,0.34696,2595.7,2595.5,0.34697]
[1729671666857,3.2078,2595.8,2595.7,0.34695]
[1729671667262,3.2078,2595.8,2595.4,3.2078]
[1729671667566,0.34695,2595.7,2595.6,0.34695]
[1729671667769,3.2078,2595.8,2595.6,0.34696]
[1729671667770,0.34695,2595.8,2595.6,0.34696]
[1729671667967,0.34696,2595.7,2595.5,2.29027]
[1729671668764,4.45183088,2596.0,2595.5,1.9433]
[1729671668954,0.34694,2595.8,2595.6,0.34696]
[1729671669263,1.8562,2596.1,2595.5,1.9433]
[1729671669454,0.34693,2595.9,2595.7,3.2078]
[1729671669656,0.34693,2595.9,2595.7,0.34695]
[1729671669852,0.3469,2596.1,2595.5,1.9433]
[1729671670060,3.2078,2596.2,2596.0,0.3469]
[1729671670259,3.2078,2596.2,2596.1,0.34689]
[1729671670453,3.2078,2596.2,2595.9,1.9482]
[1729671670763,0.3469,2596.1,2595.9,1.9482]
[1729671670959,0.34688,2596.3,2595.9,1.9482]
[1729671671357,3.7,2596.5,2595.9,1.9482]
[1729671671673,3.2078,2596.6,2596.2,3.55467]
[1729671671674,3.55464,2596.6,2596.2,3.55467]
[1729671671967,0.34684,2596.5,2596.2,0.34687]
[1729671672156,3.55463,2596.6,2596.3,0.34686]
[1729671672362,3.2078,2596.6,2596.3,0.34686]
[1729671672560,3.55463,2596.6,2596.2,3.2078]
[1729671672766,3.2078,2596.6,2596.2,3.2078]
[1729671672966,0.34685,2596.5,2596.1,2.23619]
[1729671673168,3.2078,2596.6,2596.1,1.8893]
[1729671673571,0.34685,2596.5,2596.2,0.34687]
[1729671673874,0.34686,2596.4,2596.1,2.23619]